[Event "Titled Tuesday Blitz August 09 Early 2022"]
[White "Adewumi, Tanitoluwa"]
[Black "Agasarov, Benik"]
[WhiteFideId "30966396"]
[BlackFideId "13314823"]
[WhiteElo "2511"]
[BlackElo "2152"]
[Result "0-1"]
[Round "04"]
[TimeControl "180+1"]
[Date "2022.08.09"]
[WhiteClock "0:00:06"]
[BlackClock "0:01:39"]

1. e4 {[%clk 0:02:56]}  e5 {[%clk 0:02:58]} 2. Nf3 {[%clk 0:02:53]}  Nc6 {[%clk 0:02:59]} 3. Bc4 {[%clk 0:02:53]}  Nf6 {[%clk 0:02:59]} 4. d3 {[%clk 0:02:52]}  Bc5 {[%clk 0:02:58]} 5. O-O {[%clk 0:02:52]}  O-O {[%clk 0:02:58]} 6. Re1 {[%clk 0:02:52]}  d6 {[%clk 0:02:58]} 7. c3 {[%clk 0:02:49]}  a6 {[%clk 0:02:59]} 8. a4 {[%clk 0:02:47]}  Ba7 {[%clk 0:02:58]} 9. h3 {[%clk 0:02:47]}  h6 {[%clk 0:02:57]} 10. Nbd2 {[%clk 0:02:47]}  Re8 {[%clk 0:02:56]} 11. b4 {[%clk 0:02:42]}  Be6 {[%clk 0:02:55]} 12. Bxe6 {[%clk 0:02:39]}  Rxe6 {[%clk 0:02:55]} 13. Qc2 {[%clk 0:02:35]}  d5 {[%clk 0:02:55]} 14. Nb3 {[%clk 0:02:32]}  d4 {[%clk 0:02:53]} 15. b5 {[%clk 0:02:30]}  Ne7 {[%clk 0:02:45]} 16. cxd4 {[%clk 0:02:07]}  exd4 {[%clk 0:02:44]} 17. Bb2 {[%clk 0:02:08]}  c5 {[%clk 0:02:37]} 18. Nxc5 {[%clk 0:01:55]}  Bxc5 {[%clk 0:02:14]} 19. Qxc5 {[%clk 0:01:54]}  Rc8 {[%clk 0:02:11]} 20. Qxd4 {[%clk 0:01:50]}  axb5 {[%clk 0:02:11]} 21. axb5 {[%clk 0:01:49]}  Rb6 {[%clk 0:02:11]} 22. e5 {[%clk 0:01:24]}  Ne8 {[%clk 0:02:03]} 23. Qxd8 {[%clk 0:00:44]}  Rxd8 {[%clk 0:02:02]} 24. Nd4 {[%clk 0:00:44]}  Nc7 {[%clk 0:02:01]} 25. Ra5 {[%clk 0:00:36]}  Rd5 {[%clk 0:01:51]} 26. Rc1 {[%clk 0:00:27]}  Nxb5 {[%clk 0:01:50]} 27. Nxb5 {[%clk 0:00:24]}  Rbxb5 {[%clk 0:01:50]} 28. Rxb5 {[%clk 0:00:23]}  Rxb5 {[%clk 0:01:51]} 29. Ba3 {[%clk 0:00:22]}  Nc6 {[%clk 0:01:49]} 30. Bd6 {[%clk 0:00:21]}  Rd5 {[%clk 0:01:47]} 31. Rb1 {[%clk 0:00:05]}  b5 {[%clk 0:01:42]} 32. f4 {[%clk 0:00:04]}  f6 {[%clk 0:01:40]} 33. Re1 {[%clk 0:00:01]}  fxe5 {[%clk 0:01:40]} 34. fxe5 {[%clk 0:00:02]}  Rxd3 {[%clk 0:01:40]} 35. Kf2 {[%clk 0:00:02]}  Rd2+ {[%clk 0:01:36]} 36. Re2 {[%clk 0:00:02]}  Rxe2+ {[%clk 0:01:35]} 37. Kxe2 {[%clk 0:00:03]}  Kf7 {[%clk 0:01:35]} 38. Kd3 {[%clk 0:00:04]}  Ke6 {[%clk 0:01:36]} 39. Ke4 {[%clk 0:00:04]}  g6 {[%clk 0:01:36]} 40. g4 {[%clk 0:00:04]}  b4 {[%clk 0:01:36]} 41. h4 {[%clk 0:00:04]}  b3 {[%clk 0:01:36]} 42. Kd3 {[%clk 0:00:05]}  Nxe5+ {[%clk 0:01:36]} 43. Bxe5 {[%clk 0:00:05]}  Kxe5 {[%clk 0:01:37]} 44. h5 {[%clk 0:00:03]}  g5 {[%clk 0:01:37]} 45. Kc3 {[%clk 0:00:04]}  Kf4 {[%clk 0:01:37]} 46. Kxb3 {[%clk 0:00:05]}  Kxg4 {[%clk 0:01:38]} 47. Kc3 {[%clk 0:00:05]}  Kxh5 {[%clk 0:01:39]} 48. Kd3 {[%clk 0:00:06]} 0-1


[Site "https://www.chess.com"]

[Event "Titled Tuesday Blitz August 09 Early 2022"]
[White "Aldokhin, Ivan"]
[Black "Mathieu, Phileas"]
[WhiteFideId "24115720"]
[BlackFideId "36048410"]
[WhiteElo "2246"]
[BlackElo "2138"]
[Result "1-0"]
[Round "04"]
[TimeControl "180+1"]
[Date "2022.08.09"]
[WhiteClock "0:00:06"]
[BlackClock "0:00:03"]

1. e4 {[%clk 0:03:00]}  c5 {[%clk 0:02:59]} 2. Nf3 {[%clk 0:03:01]}  Nc6 {[%clk 0:02:59]} 3. d4 {[%clk 0:03:02]}  cxd4 {[%clk 0:03:00]} 4. Nxd4 {[%clk 0:03:02]}  Nf6 {[%clk 0:03:01]} 5. Nc3 {[%clk 0:03:02]}  d6 {[%clk 0:03:01]} 6. Bc4 {[%clk 0:03:02]}  e6 {[%clk 0:03:01]} 7. Bb3 {[%clk 0:03:02]}  a6 {[%clk 0:03:01]} 8. Be3 {[%clk 0:03:02]}  Bd7 {[%clk 0:03:01]} 9. Qe2 {[%clk 0:03:02]}  Qc7 {[%clk 0:03:01]} 10. O-O-O {[%clk 0:03:02]}  Be7 {[%clk 0:02:56]} 11. g4 {[%clk 0:02:58]}  Nxd4 {[%clk 0:02:46]} 12. Rxd4 {[%clk 0:02:57]}  O-O {[%clk 0:02:26]} 13. g5 {[%clk 0:02:56]}  Ne8 {[%clk 0:02:27]} 14. f4 {[%clk 0:02:33]}  f5 {[%clk 0:02:06]} 15. exf5 {[%clk 0:02:04]}  Rxf5 {[%clk 0:02:07]} 16. Bd2 {[%clk 0:02:03]}  Qc8 {[%clk 0:01:45]} 17. Nd5 {[%clk 0:02:02]}  Bd8 {[%clk 0:01:40]} 18. Ne3 {[%clk 0:02:00]}  Rf8 {[%clk 0:01:29]} 19. h4 {[%clk 0:01:44]}  Bb6 {[%clk 0:01:29]} 20. Re4 {[%clk 0:01:28]}  d5 {[%clk 0:01:19]} 21. Re5 {[%clk 0:01:27]}  Bxe3 {[%clk 0:00:52]} 22. Qxe3 {[%clk 0:01:23]}  Nd6 {[%clk 0:00:53]} 23. Bb4 {[%clk 0:01:11]}  Nf5 {[%clk 0:00:47]} 24. Qd3 {[%clk 0:01:07]}  Rf7 {[%clk 0:00:46]} 25. h5 {[%clk 0:01:04]}  a5 {[%clk 0:00:40]} 26. g6 {[%clk 0:00:52]}  Rf6 {[%clk 0:00:33]} 27. Bc3 {[%clk 0:00:37]}  a4 {[%clk 0:00:25]} 28. Bxd5 {[%clk 0:00:37]}  exd5 {[%clk 0:00:24]} 29. Rxd5 {[%clk 0:00:37]}  Bc6 {[%clk 0:00:18]} 30. Bxf6 {[%clk 0:00:33]}  gxf6 {[%clk 0:00:19]} 31. Rg1 {[%clk 0:00:20]}  Bxd5 {[%clk 0:00:16]} 32. Qxd5+ {[%clk 0:00:20]}  Kh8 {[%clk 0:00:16]} 33. Qf7 {[%clk 0:00:14]}  Qg8 {[%clk 0:00:12]} 34. Qxf6+ {[%clk 0:00:14]}  Qg7 {[%clk 0:00:10]} 35. Qxf5 {[%clk 0:00:11]}  a3 {[%clk 0:00:10]} 36. Qe5 {[%clk 0:00:06]}  axb2+ {[%clk 0:00:06]} 37. Kxb2 {[%clk 0:00:04]}  Ra5 {[%clk 0:00:06]} 38. Qxg7+ {[%clk 0:00:03]}  Kxg7 {[%clk 0:00:07]} 39. h6+ {[%clk 0:00:03]}  Kg8 {[%clk 0:00:06]} 40. gxh7+ {[%clk 0:00:02]}  Kxh7 {[%clk 0:00:06]} 41. Rg7+ {[%clk 0:00:03]}  Kxh6 {[%clk 0:00:06]} 42. Rxb7 {[%clk 0:00:04]}  Kg6 {[%clk 0:00:07]} 43. Rb4 {[%clk 0:00:04]}  Kf5 {[%clk 0:00:07]} 44. a4 {[%clk 0:00:04]}  Ra6 {[%clk 0:00:08]} 45. Kb3 {[%clk 0:00:05]}  Ke6 {[%clk 0:00:08]} 46. Rc4 {[%clk 0:00:05]}  Kd5 {[%clk 0:00:09]} 47. Kc3 {[%clk 0:00:05]}  Rh6 {[%clk 0:00:09]} 48. Rd4+ {[%clk 0:00:06]}  Kc5 {[%clk 0:00:09]} 49. Rc4+ {[%clk 0:00:06]}  Kd5 {[%clk 0:00:09]} 50. a5 {[%clk 0:00:06]}  Ra6 {[%clk 0:00:06]} 51. Ra4 {[%clk 0:00:06]}  Kc5 {[%clk 0:00:06]} 52. f5 {[%clk 0:00:06]}  Kb5 {[%clk 0:00:07]} 53. Kb3 {[%clk 0:00:06]}  Kc5 {[%clk 0:00:05]} 54. Rc4+ {[%clk 0:00:05]}  Kb5 {[%clk 0:00:05]} 55. Rb4+ {[%clk 0:00:05]}  Kc5 {[%clk 0:00:04]} 56. Ra4 {[%clk 0:00:05]}  Kb5 {[%clk 0:00:05]} 57. f6 {[%clk 0:00:05]}  Rxf6 {[%clk 0:00:04]} 58. c3 {[%clk 0:00:04]}  Rf8 {[%clk 0:00:05]} 59. a6 {[%clk 0:00:04]}  Ra8 {[%clk 0:00:05]} 60. a7 {[%clk 0:00:04]}  Kc5 {[%clk 0:00:05]} 61. Ra5+ {[%clk 0:00:02]}  Kb6 {[%clk 0:00:05]} 62. Kb4 {[%clk 0:00:02]}  Kc6 {[%clk 0:00:06]} 63. c4 {[%clk 0:00:02]}  Kb6 {[%clk 0:00:07]} 64. c5+ {[%clk 0:00:03]}  Kc6 {[%clk 0:00:05]} 65. Ra6+ {[%clk 0:00:03]}  Kb7 {[%clk 0:00:06]} 66. Kb5 {[%clk 0:00:04]}  Kc7 {[%clk 0:00:05]} 67. Ra3 {[%clk 0:00:03]}  Kb7 {[%clk 0:00:04]} 68. Rh3 {[%clk 0:00:04]}  Kxa7 {[%clk 0:00:01]} 69. Ra3+ {[%clk 0:00:03]}  Kb7 {[%clk 0:00:01]} 70. Rxa8 {[%clk 0:00:04]}  Kxa8 {[%clk 0:00:02]} 71. Kc6 {[%clk 0:00:04]}  Kb8 {[%clk 0:00:01]} 72. Kd7 {[%clk 0:00:05]}  Kb7 {[%clk 0:00:02]} 73. c6+ {[%clk 0:00:05]}  Ka7 {[%clk 0:00:03]} 74. c7 {[%clk 0:00:06]}  Kb6 {[%clk 0:00:03]} 1-0


[Site "https://www.chess.com"]

[Event "Titled Tuesday Blitz August 09 Early 2022"]
[White "Altman, Joshua"]
[Black "Parpiev, Isaak"]
[WhiteFideId "426210"]
[BlackFideId "34281576"]
[WhiteElo "1945"]
[BlackElo "2049"]
[Result "1-0"]
[Round "04"]
[TimeControl "180+1"]
[Date "2022.08.09"]
[WhiteClock "0:00:47"]
[BlackClock "0:00:02"]

1. d4 {[%clk 0:03:00]}  Nf6 {[%clk 0:02:59]} 2. c4 {[%clk 0:03:01]}  g6 {[%clk 0:02:59]} 3. Nc3 {[%clk 0:03:01]}  Bg7 {[%clk 0:02:59]} 4. Nf3 {[%clk 0:03:01]}  O-O {[%clk 0:02:58]} 5. Bg5 {[%clk 0:03:01]}  d6 {[%clk 0:02:58]} 6. e3 {[%clk 0:03:01]}  h6 {[%clk 0:02:58]} 7. Bh4 {[%clk 0:03:01]}  Nbd7 {[%clk 0:02:58]} 8. Be2 {[%clk 0:03:02]}  e5 {[%clk 0:02:58]} 9. Qc2 {[%clk 0:03:01]}  Qe8 {[%clk 0:02:58]} 10. O-O {[%clk 0:03:00]}  g5 {[%clk 0:02:54]} 11. Bg3 {[%clk 0:03:00]}  Nh5 {[%clk 0:02:54]} 12. Nxg5 {[%clk 0:02:52]}  f5 {[%clk 0:01:42]} 13. Bxh5 {[%clk 0:02:43]}  Qxh5 {[%clk 0:01:43]} 14. Ne6 {[%clk 0:02:43]}  Rf7 {[%clk 0:01:37]} 15. Nxg7 {[%clk 0:02:38]}  Rxg7 {[%clk 0:01:34]} 16. dxe5 {[%clk 0:02:38]}  Nxe5 {[%clk 0:01:29]} 17. Nd5 {[%clk 0:02:37]}  Qf7 {[%clk 0:01:18]} 18. Qc3 {[%clk 0:02:25]}  c6 {[%clk 0:01:10]} 19. Nf4 {[%clk 0:02:10]}  h5 {[%clk 0:00:57]} 20. h4 {[%clk 0:01:44]}  Be6 {[%clk 0:00:25]} 21. c5 {[%clk 0:01:40]}  Bd5 {[%clk 0:00:02]} 22. Nxd5 {[%clk 0:01:34]}  Qxd5 {[%clk 0:00:02]} 23. cxd6 {[%clk 0:01:35]}  Ng4 {[%clk 0:00:02]} 24. Rad1 {[%clk 0:01:33]}  Qe6 {[%clk 0:00:02]} 25. Qb3 {[%clk 0:01:24]}  Qxb3 {[%clk 0:00:02]} 26. axb3 {[%clk 0:01:25]}  Rd8 {[%clk 0:00:03]} 27. Rd2 {[%clk 0:01:19]}  Rdd7 {[%clk 0:00:03]} 28. b4 {[%clk 0:01:16]}  Kf8 {[%clk 0:00:03]} 29. b5 {[%clk 0:01:14]}  cxb5 {[%clk 0:00:03]} 30. Rc1 {[%clk 0:01:14]}  a6 {[%clk 0:00:01]} 31. Rc8+ {[%clk 0:01:14]}  Kf7 {[%clk 0:00:02]} 32. Rc7 {[%clk 0:01:13]}  Ke6 {[%clk 0:00:02]} 33. Rdc2 {[%clk 0:01:06]}  Nxe3 {[%clk 0:00:02]} 34. Re2 {[%clk 0:00:58]}  f4 {[%clk 0:00:01]} 35. Bxf4 {[%clk 0:00:48]}  Rxg2+ {[%clk 0:00:02]} 36. Kh1 {[%clk 0:00:48]}  Rg4 {[%clk 0:00:03]} 37. Rxe3+ {[%clk 0:00:48]}  Kd5 {[%clk 0:00:01]} 38. Rxd7 {[%clk 0:00:47]}  Rxh4+ {[%clk 0:00:02]} 39. Bh2 {[%clk 0:00:47]} 1-0


[Site "https://www.chess.com"]

[Event "Titled Tuesday Blitz August 09 Early 2022"]
[White "Averjanov, Alexey"]
[Black "Can, Melih Kaan"]
[WhiteFideId "14109867"]
[BlackFideId "6317383"]
[WhiteElo "2650"]
[BlackElo "2049"]
[Result "0-1"]
[Round "04"]
[TimeControl "180+1"]
[Date "2022.08.09"]
[WhiteClock "0:00:10"]
[BlackClock "0:00:14"]

1. d4 {[%clk 0:02:55]}  Nf6 {[%clk 0:02:59]} 2. c4 {[%clk 0:02:53]}  c5 {[%clk 0:03:00]} 3. d5 {[%clk 0:02:53]}  e6 {[%clk 0:03:00]} 4. Nc3 {[%clk 0:02:52]}  exd5 {[%clk 0:03:01]} 5. cxd5 {[%clk 0:02:53]}  d6 {[%clk 0:03:01]} 6. Nf3 {[%clk 0:02:52]}  g6 {[%clk 0:03:01]} 7. Nd2 {[%clk 0:02:51]}  Bg7 {[%clk 0:03:01]} 8. g3 {[%clk 0:02:49]}  O-O {[%clk 0:03:00]} 9. Bg2 {[%clk 0:02:49]}  Nbd7 {[%clk 0:03:01]} 10. O-O {[%clk 0:02:48]}  Re8 {[%clk 0:02:54]} 11. h3 {[%clk 0:02:47]}  a6 {[%clk 0:02:54]} 12. a4 {[%clk 0:02:47]}  Rb8 {[%clk 0:02:53]} 13. a5 {[%clk 0:02:43]}  b5 {[%clk 0:02:53]} 14. axb6 {[%clk 0:02:43]}  Nxb6 {[%clk 0:02:53]} 15. Nb3 {[%clk 0:02:43]}  Nc4 {[%clk 0:02:37]} 16. Ra4 {[%clk 0:02:41]}  Nb6 {[%clk 0:02:34]} 17. Ra2 {[%clk 0:02:41]}  Nc4 {[%clk 0:02:33]} 18. Ra4 {[%clk 0:02:38]}  Nb6 {[%clk 0:02:33]} 19. Ra1 {[%clk 0:02:24]}  Bd7 {[%clk 0:02:32]} 20. Rxa6 {[%clk 0:02:19]}  Qc8 {[%clk 0:02:31]} 21. Ra7 {[%clk 0:02:18]}  Bxh3 {[%clk 0:02:31]} 22. Na5 {[%clk 0:02:13]}  Bxg2 {[%clk 0:02:28]} 23. Kxg2 {[%clk 0:02:14]}  Ra8 {[%clk 0:02:23]} 24. Rxa8 {[%clk 0:01:37]}  Qxa8 {[%clk 0:02:24]} 25. Nc6 {[%clk 0:01:37]}  Nfxd5 {[%clk 0:02:09]} 26. Nxd5 {[%clk 0:01:38]}  Qxc6 {[%clk 0:02:08]} 27. e4 {[%clk 0:01:38]}  Rxe4 {[%clk 0:02:01]} 28. Nxb6 {[%clk 0:01:35]}  Qxb6 {[%clk 0:01:48]} 29. Qd5 {[%clk 0:01:31]}  Re8 {[%clk 0:01:45]} 30. Bf4 {[%clk 0:01:26]}  Be5 {[%clk 0:01:28]} 31. Bxe5 {[%clk 0:01:13]}  Rxe5 {[%clk 0:01:29]} 32. Qd2 {[%clk 0:01:08]}  d5 {[%clk 0:01:19]} 33. Ra1 {[%clk 0:01:01]}  Qc6 {[%clk 0:01:04]} 34. Kg1 {[%clk 0:00:51]}  Re8 {[%clk 0:01:02]} 35. Ra7 {[%clk 0:00:48]}  d4 {[%clk 0:01:00]} 36. Kh2 {[%clk 0:00:43]}  Qf3 {[%clk 0:00:56]} 37. Ra3 {[%clk 0:00:35]}  Qh5+ {[%clk 0:00:50]} 38. Kg2 {[%clk 0:00:33]}  Re2 {[%clk 0:00:46]} 39. Qf4 {[%clk 0:00:29]}  Qd5+ {[%clk 0:00:41]} 40. Kh2 {[%clk 0:00:28]}  Re1 {[%clk 0:00:33]} 41. f3 {[%clk 0:00:19]}  Qh5+ {[%clk 0:00:26]} 42. Qh4 {[%clk 0:00:19]}  Re2+ {[%clk 0:00:24]} 43. Kh3 {[%clk 0:00:17]}  Qxh4+ {[%clk 0:00:18]} 44. Kxh4 {[%clk 0:00:17]}  Rxb2 {[%clk 0:00:18]} 45. Kg5 {[%clk 0:00:18]}  Kg7 {[%clk 0:00:18]} 46. Ra5 {[%clk 0:00:17]}  Rc2 {[%clk 0:00:16]} 47. f4 {[%clk 0:00:16]}  h6+ {[%clk 0:00:16]} 48. Kg4 {[%clk 0:00:16]}  d3 {[%clk 0:00:15]} 49. Kf3 {[%clk 0:00:15]}  d2 {[%clk 0:00:15]} 50. Ke2 {[%clk 0:00:15]}  c4 {[%clk 0:00:15]} 51. Ra2 {[%clk 0:00:10]}  Rxa2 {[%clk 0:00:14]} 0-1


[Site "https://www.chess.com"]

[Event "Titled Tuesday Blitz August 09 Early 2022"]
[White "Avinash, Ramesh"]
[Black "Filippova, Margarita"]
[WhiteFideId "45018340"]
[BlackFideId "34199680"]
[WhiteElo "1901"]
[BlackElo "1734"]
[Result "1-0"]
[Round "04"]
[TimeControl "180+1"]
[Date "2022.08.09"]
[WhiteClock "0:00:34"]
[BlackClock "0:00:25"]

1. b3 {[%clk 0:03:00]}  Nf6 {[%clk 0:02:57]} 2. Bb2 {[%clk 0:02:58]}  g6 {[%clk 0:02:56]} 3. g3 {[%clk 0:02:57]}  Bg7 {[%clk 0:02:53]} 4. Bg2 {[%clk 0:02:58]}  O-O {[%clk 0:02:54]} 5. d4 {[%clk 0:02:59]}  d5 {[%clk 0:02:53]} 6. Nf3 {[%clk 0:02:59]}  b6 {[%clk 0:02:52]} 7. O-O {[%clk 0:03:00]}  Bb7 {[%clk 0:02:53]} 8. c4 {[%clk 0:03:01]}  dxc4 {[%clk 0:02:51]} 9. bxc4 {[%clk 0:03:00]}  Nbd7 {[%clk 0:02:44]} 10. Nc3 {[%clk 0:02:57]}  Re8 {[%clk 0:02:43]} 11. Qc2 {[%clk 0:02:46]}  e5 {[%clk 0:02:41]} 12. dxe5 {[%clk 0:02:43]}  Nxe5 {[%clk 0:02:41]} 13. Nxe5 {[%clk 0:02:43]}  Bxg2 {[%clk 0:02:40]} 14. Kxg2 {[%clk 0:02:35]}  Rxe5 {[%clk 0:02:39]} 15. Rad1 {[%clk 0:02:36]}  Qe8 {[%clk 0:02:34]} 16. Qd3 {[%clk 0:02:20]}  Ne4 {[%clk 0:02:23]} 17. Nb5 {[%clk 0:02:08]}  Nc5 {[%clk 0:02:19]} 18. Qf3 {[%clk 0:02:02]}  Re7 {[%clk 0:02:09]} 19. Bxg7 {[%clk 0:02:00]}  Kxg7 {[%clk 0:02:08]} 20. Nc3 {[%clk 0:02:00]}  c6 {[%clk 0:01:56]} 21. Rd6 {[%clk 0:01:56]}  Ne4 {[%clk 0:01:49]} 22. Nxe4 {[%clk 0:01:49]}  Rxe4 {[%clk 0:01:49]} 23. Qf6+ {[%clk 0:01:48]}  Kg8 {[%clk 0:01:49]} 24. Rfd1 {[%clk 0:01:48]}  Re7 {[%clk 0:01:36]} 25. e3 {[%clk 0:01:44]}  b5 {[%clk 0:01:26]} 26. Rxc6 {[%clk 0:01:41]}  bxc4 {[%clk 0:01:24]} 27. Rxc4 {[%clk 0:01:39]}  Re6 {[%clk 0:01:21]} 28. Qf3 {[%clk 0:01:39]}  Rd8 {[%clk 0:01:19]} 29. Rxd8 {[%clk 0:01:30]}  Qxd8 {[%clk 0:01:19]} 30. Rd4 {[%clk 0:01:28]}  Rd6 {[%clk 0:01:15]} 31. Rf4 {[%clk 0:01:23]}  Qd7 {[%clk 0:01:10]} 32. g4 {[%clk 0:01:23]}  Qe6 {[%clk 0:00:59]} 33. h4 {[%clk 0:01:23]}  Qd5 {[%clk 0:00:56]} 34. Qxd5 {[%clk 0:01:21]}  Rxd5 {[%clk 0:00:56]} 35. Ra4 {[%clk 0:01:22]}  Rd7 {[%clk 0:00:54]} 36. Ra6 {[%clk 0:01:19]}  Kg7 {[%clk 0:00:53]} 37. Kg3 {[%clk 0:01:19]}  h5 {[%clk 0:00:51]} 38. g5 {[%clk 0:01:17]}  Rb7 {[%clk 0:00:51]} 39. f3 {[%clk 0:01:10]}  Rc7 {[%clk 0:00:50]} 40. Kf4 {[%clk 0:01:10]}  Rb7 {[%clk 0:00:50]} 41. e4 {[%clk 0:01:08]}  Rc7 {[%clk 0:00:48]} 42. Ke5 {[%clk 0:01:06]}  Rb7 {[%clk 0:00:46]} 43. f4 {[%clk 0:00:58]}  Rb5+ {[%clk 0:00:42]} 44. Kd4 {[%clk 0:00:58]}  Rb4+ {[%clk 0:00:42]} 45. Kd5 {[%clk 0:00:58]}  Rb5+ {[%clk 0:00:41]} 46. Kc6 {[%clk 0:00:56]}  Rb4 {[%clk 0:00:41]} 47. Kd5 {[%clk 0:00:49]}  Rb5+ {[%clk 0:00:40]} 48. Kd4 {[%clk 0:00:49]}  Rb4+ {[%clk 0:00:40]} 49. Ke3 {[%clk 0:00:50]}  Rb7 {[%clk 0:00:39]} 50. a4 {[%clk 0:00:43]}  Rb3+ {[%clk 0:00:39]} 51. Kd4 {[%clk 0:00:43]}  Rb4+ {[%clk 0:00:39]} 52. Kd5 {[%clk 0:00:42]}  Rb7 {[%clk 0:00:37]} 53. e5 {[%clk 0:00:38]}  Rb4 {[%clk 0:00:35]} 54. Rxa7 {[%clk 0:00:37]}  Kf8 {[%clk 0:00:32]} 55. e6 {[%clk 0:00:35]}  fxe6+ {[%clk 0:00:29]} 56. Ke5 {[%clk 0:00:36]}  Rb1 {[%clk 0:00:25]} 57. Kf6 {[%clk 0:00:36]}  Ke8 {[%clk 0:00:25]} 58. Kxg6 {[%clk 0:00:34]} 1-0


[Site "https://www.chess.com"]

[Event "Titled Tuesday Blitz August 09 Early 2022"]
[White "Belov, Vladimir"]
[Black "Dilanyan, Grigor"]
[WhiteFideId "4132394"]
[BlackFideId "13303570"]
[WhiteElo "2501"]
[BlackElo "2264"]
[Result "1-0"]
[Round "04"]
[TimeControl "180+1"]
[Date "2022.08.09"]
[WhiteClock "0:00:25"]
[BlackClock "0:00:54"]

1. d4 {[%clk 0:03:00]}  Nf6 {[%clk 0:02:59]} 2. c4 {[%clk 0:03:01]}  c5 {[%clk 0:02:59]} 3. d5 {[%clk 0:03:01]}  b5 {[%clk 0:03:00]} 4. cxb5 {[%clk 0:03:02]}  a6 {[%clk 0:03:00]} 5. b6 {[%clk 0:03:02]}  g6 {[%clk 0:03:00]} 6. Nc3 {[%clk 0:03:03]}  Bg7 {[%clk 0:03:00]} 7. e4 {[%clk 0:03:03]}  O-O {[%clk 0:03:00]} 8. Nf3 {[%clk 0:03:04]}  Qxb6 {[%clk 0:03:00]} 9. Nd2 {[%clk 0:03:03]}  e6 {[%clk 0:02:57]} 10. Nc4 {[%clk 0:03:03]}  Qd8 {[%clk 0:02:56]} 11. Be2 {[%clk 0:02:56]}  exd5 {[%clk 0:02:56]} 12. exd5 {[%clk 0:02:56]}  a5 {[%clk 0:02:53]} 13. O-O {[%clk 0:02:50]}  Na6 {[%clk 0:02:52]} 14. d6 {[%clk 0:02:41]}  Bb7 {[%clk 0:02:50]} 15. a3 {[%clk 0:02:38]}  Ne4 {[%clk 0:02:40]} 16. Nxe4 {[%clk 0:02:36]}  Bxe4 {[%clk 0:02:41]} 17. Bf3 {[%clk 0:02:36]}  Bxf3 {[%clk 0:02:37]} 18. Qxf3 {[%clk 0:02:37]}  Rb8 {[%clk 0:02:37]} 19. Bd2 {[%clk 0:02:29]}  a4 {[%clk 0:02:36]} 20. Bc3 {[%clk 0:02:28]}  Rb3 {[%clk 0:02:36]} 21. Rac1 {[%clk 0:02:23]}  Qh4 {[%clk 0:02:26]} 22. Qd5 {[%clk 0:02:08]}  Bxc3 {[%clk 0:02:19]} 23. Rxc3 {[%clk 0:01:46]}  Qd4 {[%clk 0:02:18]} 24. Rd1 {[%clk 0:01:34]}  Qxd5 {[%clk 0:02:11]} 25. Rxd5 {[%clk 0:01:34]}  Rxc3 {[%clk 0:02:12]} 26. bxc3 {[%clk 0:01:34]}  Rb8 {[%clk 0:02:11]} 27. Kf1 {[%clk 0:01:13]}  f6 {[%clk 0:02:04]} 28. Ke2 {[%clk 0:01:12]}  Kf7 {[%clk 0:02:04]} 29. Rd3 {[%clk 0:01:07]}  Re8+ {[%clk 0:02:03]} 30. Kd2 {[%clk 0:01:07]}  Re4 {[%clk 0:02:02]} 31. Nb6 {[%clk 0:01:01]}  Ke6 {[%clk 0:02:00]} 32. f3 {[%clk 0:01:01]}  Re5 {[%clk 0:01:59]} 33. Nxa4 {[%clk 0:00:59]}  Rd5 {[%clk 0:01:50]} 34. Nb6 {[%clk 0:00:53]}  Rxd6 {[%clk 0:01:50]} 35. Rxd6+ {[%clk 0:00:49]}  Kxd6 {[%clk 0:01:50]} 36. c4 {[%clk 0:00:46]}  Nc7 {[%clk 0:01:46]} 37. Kd3 {[%clk 0:00:42]}  Kc6 {[%clk 0:01:42]} 38. Nc8 {[%clk 0:00:36]}  Ne6 {[%clk 0:01:41]} 39. Ne7+ {[%clk 0:00:36]}  Kd6 {[%clk 0:01:41]} 40. Nd5 {[%clk 0:00:37]}  f5 {[%clk 0:01:41]} 41. h4 {[%clk 0:00:33]}  h6 {[%clk 0:01:34]} 42. a4 {[%clk 0:00:32]}  Nc7 {[%clk 0:01:31]} 43. Nxc7 {[%clk 0:00:24]}  Kxc7 {[%clk 0:01:32]} 44. g4 {[%clk 0:00:23]}  fxg4 {[%clk 0:01:14]} 45. fxg4 {[%clk 0:00:23]}  Kb6 {[%clk 0:01:05]} 46. Ke4 {[%clk 0:00:23]}  Ka5 {[%clk 0:01:05]} 47. Kd5 {[%clk 0:00:23]}  Kxa4 {[%clk 0:01:02]} 48. Kxc5 {[%clk 0:00:23]}  Kb3 {[%clk 0:01:02]} 49. Kd4 {[%clk 0:00:21]}  h5 {[%clk 0:00:54]} 50. g5 {[%clk 0:00:20]}  Kb4 {[%clk 0:00:51]} 51. c5 {[%clk 0:00:20]}  Kb5 {[%clk 0:00:50]} 52. Kd5 {[%clk 0:00:21]}  Kb4 {[%clk 0:00:51]} 53. Kd6 {[%clk 0:00:21]}  Kc4 {[%clk 0:00:51]} 54. Kxd7 {[%clk 0:00:22]}  Kxc5 {[%clk 0:00:52]} 55. Ke6 {[%clk 0:00:23]}  Kd4 {[%clk 0:00:51]} 56. Kf6 {[%clk 0:00:23]}  Ke4 {[%clk 0:00:52]} 57. Kxg6 {[%clk 0:00:24]}  Kf4 {[%clk 0:00:53]} 58. Kxh5 {[%clk 0:00:25]}  Kf5 {[%clk 0:00:54]} 59. Kh6 {[%clk 0:00:25]} 1-0


[Site "https://www.chess.com"]